bitfinex/quotes_ETHUSD_20250504
["timestamp","ask_amount","ask_price","bid_price","bid_amount"]
[1746357655278,0.20296354,1838.0,1837.9,16.65829111]
[1746357655776,0.20296354,1838.0,1837.9,16.35440124]
[1746357656776,0.20296354,1838.0,1837.9,16.65815056]
[1746357657272,5.64365994,1838.0,1837.9,14.80374932]
[1746357657778,5.64365994,1838.0,1837.9,14.5]
[1746357658474,0.20296354,1838.0,1837.9,14.5]
[1746357658876,0.20296354,1838.0,1837.9,14.80371602]
[1746357659573,5.44042871,1838.1,1837.9,14.80371602]
[1746357659776,0.20647241,1838.0,1837.9,14.80371602]
[1746357660887,5.64716881,1838.0,1837.9,14.5]
[1746357661481,5.64716881,1838.0,1837.9,14.80362103]
[1746357662792,5.64716881,1838.0,1837.9,17.40716137]
[1746357663289,0.20647241,1838.0,1837.9,17.40716137]
[1746357663689,0.20647241,1838.0,1837.9,18.50459248]
[1746357663987,0.20647241,1838.0,1837.9,20.35505173]
[1746357664188,7.12037289,1838.2,1837.9,20.35505173]
[1746357664789,0.20686098,1838.1,1837.9,20.35505173]
[1746357664950,5.44050667,1838.1,1837.9,20.05142062]
[1746357665292,0.20650966,1838.0,1837.9,20.05142062]
[1746357665493,0.20650966,1838.0,1837.9,19.25762062]
[1746357665681,5.64720606,1838.0,1837.9,19.25762062]
[1746357666089,0.20650966,1838.0,1837.9,19.25762062]
[1746357666404,5.64720606,1838.0,1837.9,17.40716137]
[1746357666587,6.05918025,1838.0,1837.9,17.40716137]
[1746357666785,6.17228025,1838.0,1837.9,17.40716137]
[1746357667903,6.17228025,1838.0,1837.9,21.05207446]
[1746357668062,6.05918025,1838.0,1837.9,21.05207446]
[1746357668473,5.49777308,1838.0,1837.9,21.05207446]
[1746357668678,5.49777308,1838.0,1837.9,21.35599619]
[1746357669483,5.49777308,1838.0,1837.9,21.05207446]
[1746357669813,5.49777308,1838.0,1837.9,6.55207446]
[1746357670311,5.49777308,1838.0,1837.9,21.35613816]
[1746357671112,0.18859283,1838.0,1837.9,23.61354314]
[1746357671276,0.18859283,1838.0,1837.9,16.75740498]
[1746357672113,0.18859283,1838.0,1837.9,16.25891038]
[1746357672408,0.18859283,1838.0,1837.9,14.8042054]
[1746357672591,5.62928923,1838.0,1837.9,14.8042054]
[1746357672792,0.18859283,1838.0,1837.9,14.8042054]
[1746357673319,0.18859283,1838.0,1837.9,15.6069054]
[1746357673531,0.18859283,1838.0,1837.9,15.3027]
[1746357673841,0.18859283,1838.0,1837.9,16.83297]
[1746357674505,0.18859283,1838.0,1837.9,17.13745482]
[1746357675499,0.18922605,1838.0,1837.9,17.13745482]
[1746357675720,0.18922605,1838.0,1837.9,16.83297]
[1746357676026,0.17350998,1838.0,1837.9,16.83297]
[1746357676332,8.44012026,1838.2,1837.9,16.83297]
[1746357676507,0.17350998,1838.0,1837.9,17.13761672]
[1746357676705,8.44012026,1838.2,1837.9,17.13761672]
[1746357677023,0.17350998,1838.0,1837.9,17.13761672]
[1746357677212,8.44029828,1838.2,1837.9,17.13761672]
[1746357677418,0.17350998,1838.0,1837.9,17.13761672]
[1746357677612,8.44029828,1838.2,1837.9,17.13761672]
[1746357677813,0.17350998,1838.0,1837.9,23.68939618]
[1746357678018,8.44029828,1838.2,1838.0,2.36893962]
[1746357678908,8.44029828,1838.2,1837.9,8.88474946]
[1746357679109,5.43996294,1838.3,1838.1,14.80462164]
[1746357679110,8.43984919,1838.3,1838.1,14.80462164]
[1746357679498,5.44010445,1838.2,1838.1,14.80462164]
[1746357680002,5.55320445,1838.2,1838.1,14.80462164]
[1746357680200,5.55320445,1838.2,1838.1,14.5]
[1746357680726,8.55320445,1838.2,1838.1,14.5]
[1746357681174,8.55320445,1838.2,1838.1,14.80468257]
[1746357682075,8.55320445,1838.2,1838.1,14.5]
[1746357682241,8.55350041,1838.1,1838.0,6.55177946]
[1746357685385,8.55350041,1838.1,1838.0,6.85647752]
[1746357686369,8.55350041,1838.1,1838.0,14.80469806]
[1746357686749,8.55350041,1838.1,1838.0,14.5]
[1746357687570,8.55350041,1838.1,1838.0,14.80462777]
[1746357687975,9.46553814,1838.1,1838.0,14.80462777]
[1746357688183,9.46553814,1838.1,1838.0,0.30462777]
[1746357688551,8.55438849,1837.8,1837.7,3.64491309]
[1746357689145,8.55438849,1837.8,1837.7,18.14491309]
[1746357689480,8.44128849,1837.8,1837.7,18.14491309]
[1746357690083,8.44128849,1837.8,1837.7,14.5]
[1746357691359,8.44128849,1837.8,1837.7,14.80455246]
[1746357691543,8.72663696,1837.8,1837.7,14.80455246]
[1746357692976,8.72663696,1837.8,1837.7,14.5]
[1746357693781,8.72663696,1837.8,1837.7,0.30445546]
[1746357694082,10.12594232,1837.8,1837.7,0.30445546]
[1746357694244,11.80603242,1837.8,1837.7,0.30445546]
[1746357695356,8.55468458,1837.7,1837.6,3.65608234]
[1746357695874,8.72471884,1837.7,1837.6,3.65608234]
[1746357696388,8.61161884,1837.7,1837.6,3.65608234]
[1746357697890,8.61161884,1837.7,1837.6,3.96029962]
[1746357698479,8.61161884,1837.7,1837.6,0.30421728]
[1746357699255,8.72471884,1837.7,1837.6,0.30421728]
[1746357699585,5.44231419,1837.5,1837.3,3.65608234]
[1746357699762,5.44231419,1837.5,1837.4,14.5]
[1746357699962,5.44194131,1837.6,1837.4,15.3287]
[1746357699963,5.44205429,1837.6,1837.4,15.3287]
[1746357701089,5.44205429,1837.6,1837.4,18.98478234]
[1746357701383,8.44182474,1837.7,1837.4,18.98478234]
[1746357702485,8.44182474,1837.7,1837.5,0.30397213]
[1746357702684,8.44182474,1837.7,1837.5,2.23284758]
[1746357702880,8.44182474,1837.7,1837.5,0.30397213]
[1746357703090,8.44182474,1837.7,1837.6,14.5]
[1746357704884,8.44182474,1837.7,1837.6,14.80404154]
[1746357706089,8.55492474,1837.7,1837.6,0.30404154]
[1746357706386,5.44188071,1837.6,1837.5,6.56584352]
[1746357706585,5.44188071,1837.6,1837.5,21.06584352]
[1746357706792,5.61055759,1837.6,1837.5,21.06584352]
[1746357707490,5.61055759,1837.6,1837.5,14.5]
[1746357710196,3.16867688,1837.6,1837.5,17.3854668]
[1746357710398,0.16867688,1837.6,1837.5,17.3854668]
[1746357710702,8.44178027,1837.7,1837.5,17.3854668]
[1746357711072,0.16815513,1837.6,1837.5,17.3854668]
[1746357711679,0.16815513,1837.6,1837.5,17.08110823]
[1746357711885,3.0,1837.7,1837.5,17.08110823]
[1746357712096,3.0,1837.7,1837.6,1.70811082]
[1746357712484,3.0,1837.7,1837.5,1.0698398]
[1746357712682,3.0,1837.7,1837.6,14.5]
[1746357714307,3.0,1837.7,1837.6,14.80431629]
[1746357715214,7.12148132,1837.8,1837.6,14.80431629]
[1746357715701,8.44116339,1837.9,1837.6,14.80431629]
[1746357716001,8.44116339,1837.9,1837.7,1.48043163]
[1746357716408,8.44116339,1837.9,1837.7,0.05441315]
[1746357716609,8.44116339,1837.9,1837.8,14.5]
[1746357716970,8.44116339,1837.9,1837.8,14.80445281]
[1746357718205,8.44116339,1837.9,1837.8,14.5]
[1746357719082,8.44116339,1837.9,1837.8,14.80462118]
[1746357719288,8.44116339,1837.9,1837.8,16.2850833]
[1746357719816,3.0,1837.9,1837.8,17.1043833]
[1746357720023,3.0,1837.9,1837.8,2.6043833]
[1746357720222,3.0,1837.9,1837.8,1.12392118]
[1746357720438,3.0,1838.0,1837.8,15.62392118]
[1746357720637,3.0,1838.1,1837.8,15.62392118]
[1746357720833,8.44044473,1838.1,1837.9,0.05440452]
[1746357721128,8.44044473,1838.1,1837.8,15.62392118]
[1746357721287,8.44044473,1838.1,1837.9,1.56239212]
[1746357721734,0.17146117,1838.0,1837.9,1.56239212]
[1746357722403,0.17146117,1838.0,1837.9,1.86670761]
[1746357723018,5.61215757,1838.0,1837.9,1.86670761]
[1746357723321,5.61215757,1838.0,1837.9,1.56239212]
[1746357723716,0.17146117,1838.0,1837.9,1.56239212]
[1746357724018,0.17146117,1838.0,1837.9,1.86655498]
[1746357724393,5.61215757,1838.0,1837.9,1.86655498]
[1746357724629,0.17146117,1838.0,1837.9,1.86655498]
[1746357725213,0.17146117,1838.0,1837.9,0.30416286]
[1746357725618,0.17146117,1838.0,1837.8,0.8193]
[1746357725834,0.17146117,1838.0,1837.8,6.3149565]
[1746357726051,0.17146117,1838.0,1837.9,6.26429243]
[1746357726545,0.17215781,1838.0,1837.9,6.31869277]
[1746357726746,10.87998417,1838.3,1837.9,7.49468724]
[1746357726906,0.17256754,1838.0,1837.9,2.35779203]
[1746357727107,10.88015158,1838.3,1837.9,2.35779203]
[1746357727301,0.17327009,1838.2,1837.9,2.35779203]
[1746357728044,0.17327009,1838.2,1837.9,7.79877782]
[1746357728243,0.17327009,1838.2,1838.0,0.77987778]
[1746357729149,0.17327009,1838.2,1838.0,1.08378202]
[1746357730354,0.17327009,1838.2,1838.0,0.77987778]
[1746357730819,5.61345481,1838.2,1838.0,0.77987778]
[1746357731250,5.61345481,1838.2,1838.1,0.30383092]
[1746357731555,0.17327009,1838.2,1838.1,0.30383092]
[1746357732245,0.17327009,1838.2,1838.0,0.83427879]
[1746357733419,0.17327009,1838.2,1838.1,0.30369649]
[1746357734058,0.17327009,1838.2,1838.1,7.17904646]
[1746357734261,7.52561931,1838.5,1838.1,7.17904646]
[1746357734473,0.17531116,1838.2,1838.1,7.17904646]
[1746357734670,7.52561931,1838.5,1838.1,7.17904646]
[1746357734873,0.17558143,1838.2,1838.1,7.17904646]
[1746357735043,7.52561931,1838.5,1838.2,14.5]
[1746357735368,5.43961117,1838.4,1838.1,1.43494956]
[1746357735672,0.17635131,1838.4,1838.2,14.5]
[1746357737233,0.17635131,1838.4,1838.3,6.2452988]
[1746357737434,7.11883238,1838.7,1838.3,6.2452988]
[1746357737665,7.11883238,1838.7,1838.4,0.62452988]
[1746357737870,7.11883238,1838.7,1838.5,14.5]
[1746357738257,5.43892091,1838.6,1838.5,14.5]
[1746357739451,7.11889772,1838.7,1838.5,14.5]
[1746357739769,7.11889772,1838.7,1838.5,15.29]
[1746357739970,7.11889772,1838.7,1838.6,1.529]
[1746357740129,10.52634682,1838.7,1838.6,1.529]
[1746357740472,7.52634682,1838.7,1838.6,1.529]
[1746357740768,10.52634682,1838.7,1838.6,1.529]
[1746357740970,10.52634682,1838.7,1838.4,1.41452988]
[1746357741383,10.11889772,1838.7,1838.5,14.5]
[1746357741588,10.11889772,1838.7,1838.6,0.303509]
[1746357742390,15.55777942,1838.7,1838.5,14.5]
[1746357742889,15.55777942,1838.7,1838.5,16.09145299]
[1746357743187,10.11889772,1838.7,1838.6,0.30357029]
[1746357744394,10.11889772,1838.7,1838.5,16.09145299]
[1746357745298,10.11889772,1838.7,1838.6,0.30358143]
[1746357746903,5.43892091,1838.6,1838.5,14.5]
[1746357747109,10.11889709,1838.7,1838.5,14.5]
[1746357747706,10.11889709,1838.7,1838.6,0.30360927]
[1746357749191,10.11889709,1838.7,1838.5,14.5]
[1746357749997,10.11889709,1838.7,1838.6,0.30372095]
[1746357751286,10.11889709,1838.7,1838.5,14.5]
[1746357751488,10.30034471,1838.7,1838.5,14.5]
[1746357752097,10.30034471,1838.7,1838.6,0.30380905]
[1746357753897,15.73923538,1838.7,1838.5,14.5]
[1746357754595,10.30034471,1838.7,1838.5,14.5]
[1746357754787,10.30034471,1838.7,1838.6,0.30386516]
[1746357755801,5.43892091,1838.6,1838.5,14.5]
[1746357756203,5.61940397,1838.6,1838.5,14.5]
[1746357759109,5.61940397,1838.6,1838.5,14.80405218]
[1746357759706,5.61940397,1838.6,1838.5,0.30405218]
[1746357760214,5.61940397,1838.6,1838.5,14.80405218]
[1746357760512,5.61940397,1838.6,1838.5,14.5]
[1746357761313,5.61940397,1838.6,1838.5,14.80412812]
[1746357763886,5.61940397,1838.6,1838.5,14.5]
[1746357764086,0.18048306,1838.6,1838.5,14.5]
[1746357764299,5.61940397,1838.6,1838.5,14.5]
[1746357764791,5.61940397,1838.6,1838.5,14.80435466]
[1746357765619,0.18048306,1838.6,1838.5,14.80435466]
[1746357765912,0.18048306,1838.6,1838.5,14.5]
[1746357766991,0.18048306,1838.6,1838.5,14.80450135]
[1746357768423,0.18048306,1838.6,1838.5,14.5]
[1746357768604,0.18048306,1838.6,1838.5,16.02508]
[1746357769326,0.18048306,1838.6,1838.5,16.32966846]
[1746357770292,0.18048306,1838.6,1838.5,14.80458846]
[1746357770914,0.18048306,1838.6,1838.5,14.5]
[1746357771632,0.18048306,1838.6,1838.5,14.8046186]
[1746357772932,0.18048306,1838.6,1838.5,14.5]
[1746357773829,0.18048306,1838.6,1838.5,14.80460666]
[1746357774228,5.61940397,1838.6,1838.5,14.80460666]
[1746357775830,5.61940397,1838.6,1838.5,14.5]
[1746357776434,5.61940397,1838.6,1838.5,14.80467009]
[1746357778233,5.61940397,1838.6,1838.5,14.5]
[1746357779037,5.61940397,1838.6,1838.5,14.80467465]
[1746357780033,5.61940397,1838.6,1838.5,14.5]
[1746357781130,5.61940397,1838.6,1838.5,14.80468493]
[1746357782345,5.61940397,1838.6,1838.5,21.37491191]
[1746357782836,5.61940397,1838.6,1838.5,21.07022698]
[1746357783837,5.61940397,1838.6,1838.5,21.3749391]
[1746357784338,5.44040041,1838.1,1838.0,5.59575037]
[1746357784514,5.44040041,1838.1,1838.0,4.77555037]
[1746357784718,0.17823452,1838.1,1838.0,4.77555037]
[1746357784942,5.61863493,1838.1,1838.0,19.27555037]
[1746357785102,5.44040041,1838.1,1838.0,19.27555037]
[1746357785429,0.17796425,1838.1,1838.0,19.27555037]
[1746357785828,5.44029747,1838.2,1838.0,21.28512541]
[1746357786035,0.17830209,1838.1,1838.0,21.28512541]
[1746357786411,5.44029747,1838.2,1838.0,21.28512541]
[1746357786610,0.17823452,1838.1,1838.0,21.28512541]
[1746357787012,8.43969321,1838.4,1838.0,27.54590167]
[1746357787234,8.43969321,1838.4,1838.1,2.75459017]
[1746357787635,8.43969321,1838.4,1838.0,13.04590167]
[1746357787910,8.43969321,1838.4,1838.1,14.5]
[1746357788312,13.87944914,1838.4,1838.1,14.5]
[1746357789133,5.43984959,1838.3,1838.1,14.5]
[1746357790019,10.87993559,1838.3,1838.1,14.5]
[1746357790225,5.44010445,1838.2,1838.1,14.5]
[1746357793115,5.55320445,1838.2,1838.1,14.5]
[1746357794245,5.44048598,1838.1,1837.8,0.7923]
[1746357794775,5.44048598,1838.1,1837.9,14.5]
[1746357795073,5.44048598,1838.1,1837.9,16.02923]
[1746357796377,0.17706473,1838.0,1837.9,16.02923]
[1746357798075,5.44042024,1838.1,1837.9,16.02923]
[1746357798277,5.61776113,1838.0,1837.9,14.5]
[1746357800053,10.41095123,1838.0,1837.9,14.5]
[1746357800259,5.44188071,1837.6,1837.5,3.84776458]
[1746357800778,5.61578988,1837.6,1837.5,18.34776458]
[1746357801876,5.61578988,1837.6,1837.5,14.5]
[1746357804086,0.17390917,1837.6,1837.5,16.82828464]
[1746357804471,10.88367947,1837.7,1837.5,16.82828464]
[1746357804789,5.61247459,1837.6,1837.5,16.82828464]
[1746357804994,0.17059388,1837.6,1837.5,16.82828464]
[1746357805173,5.4417545,1837.7,1837.5,16.82828464]
[1746357805360,0.17059388,1837.6,1837.5,15.2834]
[1746357805559,10.8835843,1837.7,1837.5,15.2834]
[1746357805795,0.17059388,1837.6,1837.5,15.2834]
[1746357805962,5.4417545,1837.7,1837.5,15.2834]
[1746357806291,0.17059388,1837.6,1837.5,15.2834]
[1746357806488,0.17059388,1837.6,1837.5,17.83352243]
[1746357806700,5.44147877,1837.8,1837.5,17.83352243]
[1746357807200,0.17128061,1837.7,1837.5,17.83352243]
[1746357808193,0.17128061,1837.7,1837.6,0.05441409]
[1746357808395,5.44114232,1837.9,1837.6,0.05441409]
[1746357808558,0.17163197,1837.8,1837.6,0.05441409]
[1746357808762,0.17163197,1837.8,1837.7,14.5]
[1746357808958,10.88179906,1838.0,1837.7,15.3024]
[1746357809187,5.61298729,1837.9,1837.7,15.3024]
[1746357812767,0.1719833,1837.9,1837.7,15.3024]
[1746357813068,0.1719833,1837.9,1837.8,0.05440868]
[1746357813469,13.88123689,1838.1,1837.8,0.05440868]
[1746357813668,0.17336169,1837.9,1837.8,0.05440868]
[1746357813872,13.88123689,1838.1,1837.8,0.05440868]
[1746357814104,0.17336169,1837.9,1837.8,0.05440868]
[1746357814305,8.44059162,1838.1,1837.8,0.05440868]
[1746357814507,0.17336169,1837.9,1837.8,0.05440868]
[1746357814806,0.17336169,1837.9,1837.8,15.18424765]
[1746357814968,8.44059162,1838.1,1837.8,15.12983897]
[1746357815173,0.17371298,1838.0,1837.8,14.5]
[1746357815374,0.17371298,1838.0,1837.8,19.94123827]
[1746357815574,0.17371298,1838.0,1837.8,14.5]
[1746357815803,5.44033905,1838.2,1837.8,14.5]
[1746357816010,0.17406423,1838.1,1837.8,19.94127869]
[1746357816210,5.44043813,1838.1,1837.9,1.99412787]
[1746357816413,0.17371298,1838.0,1837.7,6.24386104]
[1746357816908,0.17371298,1838.0,1837.8,14.5]
[1746357818411,0.17371298,1838.0,1837.8,19.94126955]
[1746357818614,5.44026915,1838.2,1837.8,19.94126955]
[1746357818828,0.17436222,1838.1,1837.8,22.55977284]
[1746357819224,10.88064382,1838.2,1837.8,17.11850329]
[1746357819427,0.17436222,1838.1,1837.8,17.11850329]
[1746357819727,0.17436222,1838.1,1837.8,22.55979001]
[1746357819941,5.44026915,1838.2,1837.8,22.55979001]
[1746357820094,0.17401097,1838.0,1837.8,22.55979001]
[1746357820396,5.44026915,1838.2,1837.9,2.255979]
[1746357820596,5.44026915,1838.2,1837.8,5.44128672]
[1746357821014,5.44026915,1838.2,1837.9,14.5]
[1746357822488,8.55308795,1838.3,1837.9,14.5]
[1746357822710,8.55308795,1838.3,1837.9,20.69327659]
[1746357824646,8.43998795,1838.3,1837.9,20.69327659]
[1746357824954,8.43998795,1838.3,1837.9,23.30671153]
[1746357825825,5.43998795,1838.3,1837.9,23.30671153]
[1746357826027,5.43998795,1838.3,1837.9,28.74749133]
[1746357826240,10.51991168,1838.4,1837.9,28.74749133]
[1746357826547,0.17576343,1838.3,1837.9,28.74749133]
[1746357826749,0.17576343,1838.3,1838.0,2.87474913]
[1746357827046,0.17541224,1838.2,1838.0,2.87474913]
[1746357827544,10.51991168,1838.4,1838.0,2.87474913]
[1746357827746,0.17506102,1838.1,1838.0,2.87474913]
[1746357827929,10.51991168,1838.4,1838.0,8.3698449]
[1746357828130,0.17506102,1838.1,1838.0,8.3698449]
[1746357828329,10.51991168,1838.4,1838.0,8.3698449]
[1746357828542,0.17506102,1838.1,1838.0,8.3698449]
[1746357828854,10.51991168,1838.4,1838.0,8.3698449]
[1746357829021,0.17506102,1838.1,1838.0,8.3698449]
[1746357829351,10.51991168,1838.4,1838.0,8.3698449]
[1746357829521,0.17506102,1838.1,1838.0,8.3698449]
[1746357829721,10.51991168,1838.4,1838.0,8.3698449]
[1746357829922,0.17506102,1838.1,1838.0,8.3698449]
[1746357830120,10.51991168,1838.4,1838.0,8.3698449]
[1746357830351,0.17506102,1838.1,1838.0,8.31544553]
[1746357830551,10.51991168,1838.4,1838.0,8.31544553]
[1746357830752,0.17506102,1838.1,1838.0,8.31544553]
[1746357831051,7.11969048,1838.4,1838.0,8.36973198]
[1746357831465,0.17654556,1838.3,1838.0,8.36973198]
[1746357831756,0.17654556,1838.3,1838.1,0.8369732]
[1746357831958,7.11969048,1838.4,1838.1,0.8369732]
[1746357832160,0.17619437,1838.2,1838.0,8.31533258]
[1746357832359,7.11969048,1838.4,1838.0,8.31533258]
[1746357832547,0.17588038,1838.1,1838.0,8.31533258]
[1746357832743,7.11969048,1838.4,1838.0,8.31533258]
[1746357833146,0.17658279,1838.3,1838.2,5.44010445]
[1746357833358,0.17658279,1838.3,1838.2,6.60978985]
[1746357833530,10.10313123,1838.6,1838.2,6.6641843]
[1746357833730,0.17658279,1838.3,1838.2,6.6641843]
[1746357833930,10.10313123,1838.6,1838.2,6.6641843]
[1746357834132,0.17658279,1838.3,1838.2,5.4944989]
[1746357834758,10.52073398,1838.6,1838.2,5.4944989]
[1746357834929,0.17658279,1838.3,1838.2,5.4944989]
[1746357835130,10.52073398,1838.6,1838.2,5.4944989]
[1746357835639,0.17728506,1838.5,1838.1,6.20235043]
[1746357835828,0.17728506,1838.5,1838.2,0.62023504]
[1746357836261,0.17728506,1838.5,1838.2,0.67462949]
[1746357836662,0.17728506,1838.5,1838.2,6.11470986]
[1746357837475,0.17728506,1838.5,1838.2,0.62023504]
[1746357837661,5.61661862,1838.5,1838.2,0.62023504]
[1746357839361,5.61661862,1838.5,1838.3,14.5]
[1746357844072,5.43951261,1838.4,1838.3,14.5]
[1746357844276,5.61669295,1838.5,1838.3,14.5]
[1746357844441,0.17738078,1838.4,1838.3,14.5]
[1746357844975,5.61689339,1838.4,1838.3,14.5]
[1746357845675,5.61689339,1838.4,1838.1,6.20239113]
[1746357845974,0.17738078,1838.4,1838.1,6.82263024]
[1746357846177,0.17738078,1838.4,1838.2,14.5]
[1746357848552,5.61691503,1838.4,1838.2,14.5]
[1746357852285,0.17738078,1838.4,1838.2,14.5]
[1746357853588,5.61693369,1838.4,1838.2,14.5]
[1746357854100,0.17738078,1838.4,1838.2,14.5]
[1746357854296,0.17738078,1838.4,1838.2,15.81846392]
[1746357854770,5.43922212,1838.5,1838.2,15.81846392]
[1746357854972,0.17695521,1838.3,1838.2,15.81846392]
[1746357855172,5.43922212,1838.5,1838.2,15.81846392]
[1746357855374,10.11887659,1838.7,1838.2,15.81846392]
[1746357855375,0.17695521,1838.3,1838.2,22.03596837]
[1746357855699,1.6800901,1838.7,1838.4,5.43946275]
[1746357855898,10.09930531,1838.9,1838.4,6.27112084]
[1746357856197,10.09930531,1838.9,1838.5,5.49343219]
[1746357856198,0.16212476,1838.6,1838.5,5.49343219]
[1746357856398,4.548,1838.9,1838.6,0.7774]
[1746357856585,4.548,1838.9,1838.6,6.21630445]
[1746357856788,5.43853258,1838.8,1838.6,0.7774]
[1746357857000,9.98620872,1838.9,1838.6,0.7774]
[1746357857195,5.43833376,1838.8,1838.7,14.5]
[1746357858713,9.98617925,1838.9,1838.7,14.5]
[1746357859079,4.548,1838.9,1838.7,16.02774]
[1746357860317,9.9861493,1838.9,1838.7,16.02774]
[1746357861120,5.4381493,1838.9,1838.7,16.02774]
[1746357866233,8.84875195,1839.0,1838.7,16.02774]
[1746357866725,14.28673049,1839.0,1838.7,16.02774]
[1746357866927,5.4380834,1838.9,1838.7,16.02774]
[1746357867435,5.4380834,1838.9,1838.7,14.5]
[1746357869046,11.94209946,1839.2,1838.8,0.8263]
[1746357869047,1.95691059,1839.2,1838.8,0.8263]
[1746357869211,5.43746529,1839.1,1838.8,0.8263]
[1746357870252,12.08252044,1839.2,1838.8,6.26461079]
[1746357871454,0.15309807,1839.1,1838.8,6.26461079]
[1746357871658,0.15309807,1839.1,1838.8,8.88493225]
[1746357872324,0.15309807,1839.1,1838.8,6.26461079]
[1746357872836,5.59055674,1839.1,1838.9,14.5]
[1746357874153,0.15309807,1839.1,1838.9,14.5]
[1746357885955,5.59059225,1839.1,1838.9,14.5]
[1746357886477,0.15309807,1839.1,1838.9,14.5]
[1746357886674,5.4377379,1839.0,1838.9,14.5]
[1746357886867,5.43908527,1838.6,1838.3,0.8155]
[1746357887373,5.43908527,1838.6,1838.4,14.5]
[1746357887374,0.15173853,1838.5,1838.4,14.5]
[1746357887943,0.15173853,1838.5,1838.2,0.8155]
[1746357887944,5.43980934,1838.3,1838.1,8.64804366]
[1746357888465,0.1493564,1838.2,1838.1,8.64804366]
[1746357888776,5.43980934,1838.3,1838.1,8.64804366]
[1746357888941,5.43980934,1838.3,1838.2,14.5]
[1746357889143,5.43969338,1838.4,1838.2,14.5]
[1746357895794,5.43980851,1838.3,1838.2,14.5]
[1746357896789,5.43980851,1838.3,1838.0,0.8155]
[1746357897098,5.43980851,1838.3,1838.0,1.44114392]
[1746357897302,5.43980851,1838.3,1838.1,14.5]
[1746357897599,5.44000829,1838.3,1838.1,14.5]
[1746357899802,5.44010445,1838.2,1838.1,14.5]
[1746357901407,5.57213997,1838.2,1838.1,14.5]
[1746357902419,6.65992972,1838.2,1838.1,14.5]
[1746357904214,5.57213997,1838.2,1838.1,14.5]
[1746357904784,5.44064225,1838.1,1837.8,0.8318]
[1746357904984,5.44081408,1838.0,1837.8,0.8318]
[1746357905206,5.5721472,1838.0,1837.9,14.5]
[1746357905408,0.13133312,1838.0,1837.9,14.5]
[1746357906087,11.29666403,1838.2,1837.9,14.5]
[1746357906417,0.13168434,1838.1,1837.9,14.5]
[1746357906821,5.44042389,1838.1,1837.9,14.5]
[1746357907020,0.13133312,1838.0,1837.9,14.5]
[1746357910225,5.57202952,1838.0,1837.9,14.5]
[1746357910807,0.13133312,1838.0,1837.9,14.5]
[1746357911122,5.57202952,1838.0,1837.9,14.5]
[1746357914511,6.68460224,1838.0,1837.9,14.5]
[1746357915819,9.68460224,1838.0,1837.9,14.5]
[1746357916024,5.44156399,1837.8,1837.5,0.7535]
[1746357916222,10.8831297,1837.8,1837.5,0.7535]
[1746357916421,5.56978269,1837.7,1837.5,0.7535]
[1746357916623,0.12812896,1837.7,1837.6,14.5]
[1746357917123,5.56971354,1837.7,1837.6,14.5]
[1746357917927,0.12812896,1837.7,1837.6,14.5]
[1746357918227,5.56971354,1837.7,1837.6,14.5]
[1746357922531,5.44189163,1837.6,1837.3,0.7988]
[1746357922734,5.44189163,1837.6,1837.3,2.42185481]
[1746357922905,0.12555563,1837.5,1837.4,14.5]
[1746357923231,5.44189163,1837.6,1837.4,14.5]
[1746357923429,0.12555563,1837.5,1837.4,14.5]
[1746357923631,5.44189163,1837.6,1837.4,14.5]
[1746357923925,0.12555563,1837.5,1837.4,14.5]
[1746357924299,5.44189163,1837.6,1837.4,14.5]
[1746357924611,0.12555563,1837.5,1837.4,14.5]
[1746357924933,5.44189163,1837.6,1837.4,14.5]
[1746357925228,0.12555563,1837.5,1837.4,14.5]
[1746357925434,5.44189163,1837.6,1837.4,14.5]
[1746357925604,0.12476988,1837.5,1837.4,14.5]
[1746357925804,5.44189163,1837.6,1837.4,14.5]
[1746357926004,0.12476988,1837.5,1837.4,14.5]
[1746357926310,5.44189163,1837.6,1837.4,14.5]
[1746357926711,0.12476988,1837.5,1837.4,14.5]
[1746357927134,5.44189163,1837.6,1837.4,14.5]
[1746357927433,0.12476988,1837.5,1837.4,14.5]
[1746357927733,5.44189163,1837.6,1837.4,14.5]
[1746357928034,0.12476988,1837.5,1837.4,14.5]
[1746357928737,5.56694675,1837.5,1837.4,14.5]
[1746357929237,0.12476988,1837.5,1837.4,14.5]
[1746357930138,5.56694675,1837.5,1837.4,14.5]
[1746357934951,5.442658,1837.4,1837.1,0.8032]
[1746357935330,0.12325326,1837.3,1837.2,14.5]
[1746357935734,5.442658,1837.4,1837.2,14.5]
[1746357935934,5.56531146,1837.3,1837.2,14.5]
[1746357936247,0.12254218,1837.3,1837.2,14.5]
[1746357936418,5.44230471,1837.5,1837.2,14.5]
[1746357936620,0.12289373,1837.4,1837.2,14.5]
[1746357938245,0.12289373,1837.4,1837.3,0.8086]
[1746357938869,0.12289373,1837.4,1837.3,15.3086]
[1746357941555,5.56536678,1837.4,1837.3,14.5]
[1746357942256,0.12289373,1837.4,1837.3,14.5]
[1746357944070,7.12183131,1837.7,1837.3,21.46923928]
[1746357944253,7.12183131,1837.7,1837.4,0.8185]
[1746357944759,1.6800901,1837.7,1837.4,6.26083929]
[1746357944959,1.6800901,1837.7,1837.4,6.31525983]
[1746357945159,0.11023908,1837.6,1837.4,6.31525983]
[1746357945332,0.11023908,1837.6,1837.5,15.13152598]
[1746357945532,5.44141779,1837.8,1837.5,15.13152598]
[1746357945759,0.11042624,1837.6,1837.5,20.57370285]
[1746357945943,8.44112006,1837.9,1837.5,20.57370285]
[1746357946137,0.11042624,1837.6,1837.5,19.94217687]
[1746357946347,8.44112006,1837.9,1837.5,19.94217687]
[1746357946538,0.11042624,1837.6,1837.5,19.94217687]
[1746357946865,8.44112006,1837.9,1837.5,19.94217687]
[1746357947074,0.11112909,1837.8,1837.5,19.94217687]
[1746357947257,0.11112909,1837.8,1837.5,22.5624702]
[1746357947772,0.11112909,1837.8,1837.5,17.12029333]
[1746357948942,0.11112909,1837.8,1837.5,22.56246013]
[1746357949137,0.11112909,1837.8,1837.7,6.26008458]
[1746357949344,5.44012645,1838.2,1837.8,6.2596426]
[1746357949671,0.10247204,1838.1,1837.8,0.8185]
[1746357949872,6.17726639,1838.8,1838.1,0.8185]
[1746357949873,0.40438589,1838.6,1838.1,0.8185]
[1746357950181,0.10395178,1838.5,1838.2,0.05439511]
[1746357950857,5.54316958,1838.5,1838.1,6.25889495]
[1746357951457,0.10395178,1838.5,1838.2,5.44004625]
[1746357951777,5.43959477,1838.4,1838.1,0.8185]
[1746357952142,0.10324947,1838.3,1838.1,0.8185]
[1746357952542,5.43959477,1838.4,1838.1,0.8185]
[1746357952770,0.10289826,1838.2,1838.1,0.8185]